[Event "January 9 Late 2024"]
[Site "https://www.chess.com"]
[Date "2024.01.09"]
[Round "6"]
[White "Wu, Derek"]
[Black "Rubio Tent, Francisco"]
[Result "1-0"]
[Board "116"]
[TimeControl "180+1"]
[WhiteFideId "30914558"]
[BlackFideId "2238233"]
[WhiteElo "2664"]
[BlackElo "2419"]
[WhiteTeam "USA"]
[BlackTeam "ESP"]
[WhiteClock "0:02:13"]
[BlackClock "0:00:00"]

1. e4 {[%clk 0:03:00]}  c5 {[%clk 0:02:59]} 2. Nf3 {[%clk 0:03:01]}  Nc6 {[%clk 0:02:58]} 3. d4 {[%clk 0:03:00]}  cxd4 {[%clk 0:02:59]} 4. Nxd4 {[%clk 0:03:01]}  e5 {[%clk 0:03:00]} 5. Nb5 {[%clk 0:03:01]}  d6 {[%clk 0:03:00]} 6. c4 {[%clk 0:03:00]}  Be7 {[%clk 0:03:00]} 7. Bd3 {[%clk 0:03:00]}  Nf6 {[%clk 0:02:50]} 8. O-O {[%clk 0:03:00]}  O-O {[%clk 0:02:50]} 9. N5c3 {[%clk 0:03:00]}  Nd7 {[%clk 0:02:40]} 10. Nd5 {[%clk 0:02:55]}  Nc5 {[%clk 0:02:38]} 11. Be3 {[%clk 0:02:52]}  Nxd3 {[%clk 0:02:26]} 12. Qxd3 {[%clk 0:02:52]}  f5 {[%clk 0:02:27]} 13. f3 {[%clk 0:02:49]}  Bg5 {[%clk 0:02:19]} 14. Bf2 {[%clk 0:02:44]}  Be6 {[%clk 0:02:08]} 15. Nbc3 {[%clk 0:02:42]}  Rc8 {[%clk 0:02:07]} 16. Rad1 {[%clk 0:02:40]}  f4 {[%clk 0:01:47]} 17. Nb5 {[%clk 0:02:37]}  a6 {[%clk 0:01:18]} 18. Bb6 {[%clk 0:02:36]}  Qd7 {[%clk 0:01:14]} 19. Nxd6 {[%clk 0:02:35]}  Bd8 {[%clk 0:00:20]} 20. Nxc8 {[%clk 0:02:32]}  Qxc8 {[%clk 0:00:13]} 21. Bc5 {[%clk 0:02:27]}  Nd4 {[%clk 0:00:12]} 22. Bxd4 {[%clk 0:02:25]}  exd4 {[%clk 0:00:10]} 23. Qxd4 {[%clk 0:02:26]}  Kh8 {[%clk 0:00:03]} 24. c5 {[%clk 0:02:26]}  Qc6 {[%clk 0:00:03]} 25. b4 {[%clk 0:02:25]}  Bh4 {[%clk 0:00:02]} 26. Nxf4 {[%clk 0:02:19]}  Bc8 {[%clk 0:00:02]} 27. g3 {[%clk 0:02:15]}  Bg5 {[%clk 0:00:00]} 28. Qd5 {[%clk 0:02:13]} 1-0

[Event "January 9 Late 2024"]
[Site "https://www.chess.com"]
[Date "2024.01.09"]
[Round "6"]
[White "Lund, Gunnar"]
[Black "Storn, Justin"]
[Result "0-1"]
[Board "117"]
[TimeControl "180+1"]
[WhiteFideId "1520814"]
[BlackFideId "30922720"]
[WhiteElo "2656"]
[BlackElo "2418"]
[WhiteTeam "NOR"]
[BlackTeam "USA"]
[WhiteClock "0:00:00"]
[BlackClock "0:00:37"]

1. d4 {[%clk 0:03:00]}  d5 {[%clk 0:02:56]} 2. c4 {[%clk 0:03:00]}  e6 {[%clk 0:02:56]} 3. Nf3 {[%clk 0:03:01]}  Nf6 {[%clk 0:02:56]} 4. Nc3 {[%clk 0:03:01]}  Bb4 {[%clk 0:02:54]} 5. Bf4 {[%clk 0:02:52]}  O-O {[%clk 0:02:52]} 6. e3 {[%clk 0:02:51]}  c5 {[%clk 0:02:45]} 7. Be2 {[%clk 0:02:44]}  Ne4 {[%clk 0:02:36]} 8. Rc1 {[%clk 0:02:07]}  Qa5 {[%clk 0:02:34]} 9. O-O {[%clk 0:02:07]}  Bxc3 {[%clk 0:02:32]} 10. bxc3 {[%clk 0:02:07]}  Nxc3 {[%clk 0:02:32]} 11. Qd2 {[%clk 0:02:06]}  Nxe2+ {[%clk 0:02:32]} 12. Qxe2 {[%clk 0:02:07]}  dxc4 {[%clk 0:02:00]} 13. Bd6 {[%clk 0:01:59]}  Rd8 {[%clk 0:01:54]} 14. dxc5 {[%clk 0:01:57]}  b5 {[%clk 0:01:52]} 15. Ne5 {[%clk 0:01:29]}  f6 {[%clk 0:01:42]} 16. Qf3 {[%clk 0:01:25]}  Qa6 {[%clk 0:01:26]} 17. Qxa8 {[%clk 0:00:27]}  Bb7 {[%clk 0:01:23]} 18. Qxb8 {[%clk 0:00:25]}  Rxb8 {[%clk 0:01:23]} 19. Bxb8 {[%clk 0:00:26]}  fxe5 {[%clk 0:01:22]} 20. Bxe5 {[%clk 0:00:27]}  Qc6 {[%clk 0:01:22]} 21. f3 {[%clk 0:00:22]}  Qxc5 {[%clk 0:01:20]} 22. Bd4 {[%clk 0:00:22]}  Qa3 {[%clk 0:01:20]} 23. Rfd1 {[%clk 0:00:21]}  e5 {[%clk 0:01:19]} 24. Bc3 {[%clk 0:00:17]}  h6 {[%clk 0:01:12]} 25. h3 {[%clk 0:00:16]}  b4 {[%clk 0:01:10]} 26. Be1 {[%clk 0:00:08]}  c3 {[%clk 0:01:11]} 27. Kh2 {[%clk 0:00:04]}  Qxa2 {[%clk 0:01:08]} 28. Bxc3 {[%clk 0:00:04]}  bxc3 {[%clk 0:01:08]} 29. Rxc3 {[%clk 0:00:05]}  Bxf3 {[%clk 0:01:06]} 30. Rg1 {[%clk 0:00:02]}  Bd5 {[%clk 0:01:05]} 31. Rc7 {[%clk 0:00:01]}  a5 {[%clk 0:01:04]} 32. Re7 {[%clk 0:00:01]}  Qb2 {[%clk 0:00:39]} 33. Ra7 {[%clk 0:00:00]}  Qb6 {[%clk 0:00:37]} 0-1

[Event "January 9 Late 2024"]
[Site "https://www.chess.com"]
[Date "2024.01.09"]
[Round "6"]
[White "Jarocka, Liwia"]
[Black "Rama, Tejas"]
[Result "1/2-1/2"]
[Board "119"]
[TimeControl "180+1"]
[WhiteFideId "21807558"]
[BlackFideId "30907381"]
[WhiteElo "2413"]
[BlackElo "2627"]
[WhiteTeam "POL"]
[BlackTeam "USA"]
[WhiteClock "0:01:45"]
[BlackClock "0:00:44"]

1. e4 {[%clk 0:03:00]}  e5 {[%clk 0:02:59]} 2. Nc3 {[%clk 0:02:59]}  Nf6 {[%clk 0:02:58]} 3. Nf3 {[%clk 0:02:59]}  Nc6 {[%clk 0:02:58]} 4. Bb5 {[%clk 0:02:59]}  Nd4 {[%clk 0:02:57]} 5. Bc4 {[%clk 0:02:58]}  Bc5 {[%clk 0:02:52]} 6. Nxe5 {[%clk 0:02:58]}  Qe7 {[%clk 0:02:26]} 7. Nf3 {[%clk 0:02:55]}  d5 {[%clk 0:02:26]} 8. Bxd5 {[%clk 0:02:55]}  Bg4 {[%clk 0:02:22]} 9. d3 {[%clk 0:02:55]}  O-O-O {[%clk 0:02:18]} 10. Be3 {[%clk 0:02:55]}  Nxd5 {[%clk 0:02:15]} 11. Nxd5 {[%clk 0:02:56]}  Rxd5 {[%clk 0:02:12]} 12. exd5 {[%clk 0:02:57]}  Re8 {[%clk 0:02:12]} 13. c3 {[%clk 0:02:18]}  Nxf3+ {[%clk 0:02:11]} 14. gxf3 {[%clk 0:02:17]}  Qh4 {[%clk 0:02:05]} 15. Kd2 {[%clk 0:02:17]}  Rxe3 {[%clk 0:02:03]} 16. fxe3 {[%clk 0:02:15]}  Qf2+ {[%clk 0:02:02]} 17. Kc1 {[%clk 0:02:15]}  Bxe3+ {[%clk 0:02:00]} 18. Kb1 {[%clk 0:02:14]}  Bxf3 {[%clk 0:01:58]} 19. Qe1 {[%clk 0:02:13]}  Bxh1 {[%clk 0:01:53]} 20. Qxh1 {[%clk 0:02:11]}  Qe2 {[%clk 0:01:53]} 21. a4 {[%clk 0:02:09]}  Qxd3+ {[%clk 0:01:52]} 22. Ka2 {[%clk 0:02:09]}  Qc4+ {[%clk 0:01:50]} 23. Kb1 {[%clk 0:02:10]}  Qd3+ {[%clk 0:01:37]} 24. Ka2 {[%clk 0:02:09]}  Qc4+ {[%clk 0:01:38]} 25. Kb1 {[%clk 0:02:09]}  f5 {[%clk 0:01:27]} 26. Qf3 {[%clk 0:02:00]}  Qd3+ {[%clk 0:01:13]} 27. Ka2 {[%clk 0:01:59]}  Qc4+ {[%clk 0:01:02]} 28. Kb1 {[%clk 0:02:00]}  Qd3+ {[%clk 0:00:44]} 29. Ka2 {[%clk 0:01:59]}  Qc4+ {[%clk 0:00:44]} 30. Kb1 {[%clk 0:01:45]} 1/2-1/2

[Event "January 9 Late 2024"]
[Site "https://www.chess.com"]
[Date "2024.01.09"]
[Round "6"]
[White "Gubajdullin, Alexei"]
[Black "Figorito, Nick"]
[Result "1-0"]
[Board "120"]
[TimeControl "180+1"]
[WhiteFideId "4141202"]
[BlackFideId "30923689"]
[WhiteElo "2624"]
[BlackElo "2403"]
[WhiteTeam "RUS"]
[BlackTeam "USA"]
[WhiteClock "0:00:17"]
[BlackClock "0:00:00"]

1. e4 {[%clk 0:03:00]}  e6 {[%clk 0:03:00]} 2. d4 {[%clk 0:02:59]}  d5 {[%clk 0:03:01]} 3. Nd2 {[%clk 0:02:59]}  Nf6 {[%clk 0:03:01]} 4. e5 {[%clk 0:02:59]}  Nfd7 {[%clk 0:03:01]} 5. Bd3 {[%clk 0:02:59]}  c5 {[%clk 0:03:02]} 6. c3 {[%clk 0:02:59]}  Nc6 {[%clk 0:03:03]} 7. Ne2 {[%clk 0:03:00]}  cxd4 {[%clk 0:03:03]} 8. cxd4 {[%clk 0:02:59]}  f6 {[%clk 0:03:04]} 9. exf6 {[%clk 0:02:53]}  Nxf6 {[%clk 0:03:05]} 10. O-O {[%clk 0:02:51]}  Bd6 {[%clk 0:03:06]} 11. Nf3 {[%clk 0:02:51]}  Qc7 {[%clk 0:03:06]} 12. Bg5 {[%clk 0:02:50]}  O-O {[%clk 0:03:06]} 13. Bh4 {[%clk 0:02:49]}  Nh5 {[%clk 0:03:06]} 14. Bg3 {[%clk 0:02:49]}  Nxg3 {[%clk 0:03:05]} 15. hxg3 {[%clk 0:02:48]}  g6 {[%clk 0:03:06]} 16. Rc1 {[%clk 0:02:41]}  Qg7 {[%clk 0:03:06]} 17. Bb5 {[%clk 0:02:39]}  Bd7 {[%clk 0:03:05]} 18. Qd2 {[%clk 0:02:38]}  Rac8 {[%clk 0:02:50]} 19. Rfe1 {[%clk 0:02:36]}  Bb4 {[%clk 0:02:36]} 20. Nc3 {[%clk 0:02:35]}  Rxf3 {[%clk 0:02:30]} 21. Bxc6 {[%clk 0:02:29]}  Rff8 {[%clk 0:01:57]} 22. Bxb7 {[%clk 0:02:23]}  Rc7 {[%clk 0:01:54]} 23. Ba6 {[%clk 0:02:22]}  Qf6 {[%clk 0:01:03]} 24. Re3 {[%clk 0:01:29]}  Ba5 {[%clk 0:00:52]} 25. Rf3 {[%clk 0:01:19]}  Qg7 {[%clk 0:00:52]} 26. Rxf8+ {[%clk 0:01:15]}  Qxf8 {[%clk 0:00:53]} 27. Be2 {[%clk 0:01:08]}  Qf6 {[%clk 0:00:41]} 28. Qe3 {[%clk 0:00:57]}  Bb6 {[%clk 0:00:39]} 29. Rd1 {[%clk 0:00:56]}  Kg7 {[%clk 0:00:35]} 30. Kh2 {[%clk 0:00:55]}  Bc8 {[%clk 0:00:34]} 31. f4 {[%clk 0:00:54]}  Bd7 {[%clk 0:00:29]} 32. Bg4 {[%clk 0:00:52]}  Ba5 {[%clk 0:00:25]} 33. Re1 {[%clk 0:00:42]}  Bxc3 {[%clk 0:00:23]} 34. bxc3 {[%clk 0:00:40]}  Kf7 {[%clk 0:00:23]} 35. Rb1 {[%clk 0:00:36]}  Ba4 {[%clk 0:00:21]} 36. Rb8 {[%clk 0:00:32]}  Bc2 {[%clk 0:00:20]} 37. Bxe6+ {[%clk 0:00:31]}  Qxe6 {[%clk 0:00:04]} 38. Rf8+ {[%clk 0:00:28]}  Kxf8 {[%clk 0:00:02]} 39. Qxe6 {[%clk 0:00:28]}  Be4 {[%clk 0:00:02]} 40. Qf6+ {[%clk 0:00:24]}  Rf7 {[%clk 0:00:01]} 41. Qd8+ {[%clk 0:00:19]}  Kg7 {[%clk 0:00:00]} 42. Qc8 {[%clk 0:00:17]} 1-0

[Event "January 9 Late 2024"]
[Site "https://www.chess.com"]
[Date "2024.01.09"]
[Round "6"]
[White "Golubev, Mikhail"]
[Black "Carre, Sylvain"]
[Result "1-0"]
[Board "128"]
[TimeControl "180+1"]
[WhiteFideId "14100983"]
[BlackFideId "642118"]
[WhiteElo "2580"]
[BlackElo "2368"]
[WhiteTeam "UKR"]
[BlackTeam "FRA"]
[WhiteClock "0:00:55"]
[BlackClock "0:00:36"]

1. e4 {[%clk 0:01:12]}  e5 {[%clk 0:02:55]} 2. Nf3 {[%clk 0:01:12]}  Nf6 {[%clk 0:02:55]} 3. Nc3 {[%clk 0:01:10]}  Nc6 {[%clk 0:02:55]} 4. d4 {[%clk 0:01:11]}  exd4 {[%clk 0:02:56]} 5. Nxd4 {[%clk 0:01:11]}  Bb4 {[%clk 0:02:56]} 6. Nxc6 {[%clk 0:01:12]}  bxc6 {[%clk 0:02:56]} 7. Bd3 {[%clk 0:01:12]}  d5 {[%clk 0:02:57]} 8. Bd2 {[%clk 0:01:12]}  O-O {[%clk 0:02:44]} 9. O-O {[%clk 0:01:12]}  Bxc3 {[%clk 0:02:11]} 10. Bxc3 {[%clk 0:01:13]}  Nxe4 {[%clk 0:02:11]} 11. Bxe4 {[%clk 0:01:12]}  dxe4 {[%clk 0:02:11]} 12. Qe2 {[%clk 0:01:12]}  Bf5 {[%clk 0:01:53]} 13. Qe3 {[%clk 0:01:12]}  Bg6 {[%clk 0:01:49]} 14. Rad1 {[%clk 0:01:11]}  Qh4 {[%clk 0:01:48]} 15. Qd4 {[%clk 0:01:06]}  Qh6 {[%clk 0:01:21]} 16. Qe5 {[%clk 0:01:01]}  Rae8 {[%clk 0:01:11]} 17. Qxc7 {[%clk 0:01:00]}  e3 {[%clk 0:01:12]} 18. fxe3 {[%clk 0:01:00]}  Qxe3+ {[%clk 0:01:11]} 19. Kh1 {[%clk 0:01:00]}  Bxc2 {[%clk 0:01:02]} 20. Rde1 {[%clk 0:00:58]}  Qb6 {[%clk 0:00:36]} 21. Qxf7+ {[%clk 0:00:55]} 1-0

[Event "January 9 Late 2024"]
[Site "https://www.chess.com"]
[Date "2024.01.09"]
[Round "6"]
[White "Hajiyev, Kanan"]
[Black "Gerbelli Neto, Eduardo"]
[Result "0-1"]
[Board "129"]
[TimeControl "180+1"]
[WhiteFideId "13404148"]
[BlackFideId "2103281"]
[WhiteElo "2550"]
[BlackElo "2362"]
[WhiteTeam "AZE"]
[BlackTeam "BRA"]
[WhiteClock "0:01:21"]
[BlackClock "0:00:29"]

1. d4 {[%clk 0:03:00]}  d5 {[%clk 0:02:58]} 2. c4 {[%clk 0:03:00]}  c6 {[%clk 0:02:58]} 3. cxd5 {[%clk 0:03:01]}  cxd5 {[%clk 0:02:58]} 4. Nc3 {[%clk 0:03:02]}  Nf6 {[%clk 0:02:58]} 5. Nf3 {[%clk 0:03:03]}  Nc6 {[%clk 0:02:59]} 6. Bg5 {[%clk 0:03:04]}  Ne4 {[%clk 0:02:55]} 7. Bf4 {[%clk 0:03:04]}  e6 {[%clk 0:02:45]} 8. e3 {[%clk 0:03:00]}  Bb4 {[%clk 0:02:44]} 9. Qb3 {[%clk 0:03:00]}  Qa5 {[%clk 0:02:43]} 10. Rc1 {[%clk 0:02:59]}  Qb6 {[%clk 0:02:10]} 11. Bd3 {[%clk 0:02:58]}  Na5 {[%clk 0:02:03]} 12. Qc2 {[%clk 0:02:54]}  Nxc3 {[%clk 0:01:56]} 13. bxc3 {[%clk 0:02:53]}  Bd6 {[%clk 0:01:50]} 14. O-O {[%clk 0:02:53]}  Bxf4 {[%clk 0:01:50]} 15. exf4 {[%clk 0:02:54]}  g6 {[%clk 0:01:42]} 16. Ne5 {[%clk 0:02:54]}  O-O {[%clk 0:01:37]} 17. g4 {[%clk 0:02:52]}  Nc6 {[%clk 0:01:36]} 18. g5 {[%clk 0:02:50]}  Nxe5 {[%clk 0:01:32]} 19. fxe5 {[%clk 0:02:51]}  Bd7 {[%clk 0:01:29]} 20. f4 {[%clk 0:02:48]}  Rfc8 {[%clk 0:01:23]} 21. Rf3 {[%clk 0:02:47]}  Bb5 {[%clk 0:01:13]} 22. Rb1 {[%clk 0:02:43]}  Bxd3 {[%clk 0:01:12]} 23. Qxd3 {[%clk 0:02:44]}  Qa6 {[%clk 0:01:03]} 24. Qxa6 {[%clk 0:02:42]}  bxa6 {[%clk 0:01:04]} 25. Rb3 {[%clk 0:02:37]}  Rab8 {[%clk 0:00:58]} 26. Kf2 {[%clk 0:02:19]}  Rxb3 {[%clk 0:00:53]} 27. axb3 {[%clk 0:02:20]}  Rb8 {[%clk 0:00:53]} 28. b4 {[%clk 0:02:12]}  a5 {[%clk 0:00:53]} 29. bxa5 {[%clk 0:02:12]}  Rb5 {[%clk 0:00:52]} 30. a6 {[%clk 0:02:10]}  Ra5 {[%clk 0:00:52]} 31. Ke3 {[%clk 0:02:06]}  Rxa6 {[%clk 0:00:52]} 32. Rf2 {[%clk 0:02:07]}  Ra3 {[%clk 0:00:49]} 33. Kd3 {[%clk 0:02:07]}  a5 {[%clk 0:00:48]} 34. Rb2 {[%clk 0:02:08]}  a4 {[%clk 0:00:48]} 35. h4 {[%clk 0:02:06]}  Ra1 {[%clk 0:00:48]} 36. h5 {[%clk 0:02:07]}  gxh5 {[%clk 0:00:47]} 37. Rh2 {[%clk 0:02:07]}  a3 {[%clk 0:00:45]} 38. c4 {[%clk 0:01:42]}  a2 {[%clk 0:00:36]} 39. cxd5 {[%clk 0:01:31]}  Rd1+ {[%clk 0:00:32]} 40. Ke4 {[%clk 0:01:31]}  exd5+ {[%clk 0:00:31]} 41. Kf5 {[%clk 0:01:29]}  a1=Q {[%clk 0:00:32]} 42. Kf6 {[%clk 0:01:21]}  Qa6+ {[%clk 0:00:29]} 0-1

[Event "January 9 Late 2024"]
[Site "https://www.chess.com"]
[Date "2024.01.10"]
[Round "6"]
[White "Harriott, Tyrell"]
[Black "Nouali, Mohamed"]
[Result "1/2-1/2"]
[Board "130"]
[TimeControl "180+1"]
[WhiteFideId "2086484"]
[BlackFideId "5502462"]
[WhiteElo "2358"]
[BlackElo "2546"]
[WhiteTeam "USA"]
[BlackTeam "TUN"]
[WhiteClock "0:00:19"]
[BlackClock "0:00:07"]

1. d4 {[%clk 0:03:00]}  Nf6 {[%clk 0:02:11]} 2. e3 {[%clk 0:02:58]}  g6 {[%clk 0:02:11]} 3. Bd3 {[%clk 0:02:57]}  Bg7 {[%clk 0:02:12]} 4. f4 {[%clk 0:02:56]}  O-O {[%clk 0:02:12]} 5. Nf3 {[%clk 0:02:55]}  d6 {[%clk 0:02:13]} 6. O-O {[%clk 0:02:54]}  Nc6 {[%clk 0:02:13]} 7. c3 {[%clk 0:02:54]}  Bg4 {[%clk 0:02:12]} 8. Nbd2 {[%clk 0:02:53]}  e5 {[%clk 0:02:12]} 9. Qc2 {[%clk 0:02:53]}  Qe7 {[%clk 0:02:03]} 10. Bb5 {[%clk 0:02:47]}  exf4 {[%clk 0:01:57]} 11. exf4 {[%clk 0:02:46]}  Qe3+ {[%clk 0:01:53]} 12. Kh1 {[%clk 0:02:45]}  Qxf4 {[%clk 0:01:54]} 13. Ne5 {[%clk 0:02:44]}  dxe5 {[%clk 0:01:24]} 14. Rxf4 {[%clk 0:02:42]}  exf4 {[%clk 0:01:25]} 15. Nf3 {[%clk 0:02:36]}  Nd5 {[%clk 0:01:16]} 16. Qb3 {[%clk 0:02:27]}  Be6 {[%clk 0:01:08]} 17. c4 {[%clk 0:02:22]}  Na5 {[%clk 0:00:39]} 18. Qa3 {[%clk 0:02:07]}  a6 {[%clk 0:00:34]} 19. cxd5 {[%clk 0:01:52]}  Bxd5 {[%clk 0:00:33]} 20. Bf1 {[%clk 0:01:47]}  Nc6 {[%clk 0:00:30]} 21. Bxf4 {[%clk 0:01:46]}  Rfe8 {[%clk 0:00:29]} 22. Bxc7 {[%clk 0:01:32]}  Rac8 {[%clk 0:00:24]} 23. Bb6 {[%clk 0:01:20]}  Bh6 {[%clk 0:00:19]} 24. Qc5 {[%clk 0:01:11]}  Be4 {[%clk 0:00:13]} 25. Ng5 {[%clk 0:01:06]}  Ne5 {[%clk 0:00:10]} 26. Nxe4 {[%clk 0:00:58]}  Rxc5 {[%clk 0:00:08]} 27. Nf6+ {[%clk 0:00:58]}  Kh8 {[%clk 0:00:03]} 28. Nxe8 {[%clk 0:00:30]}  Rc6 {[%clk 0:00:04]} 29. Ba5 {[%clk 0:00:22]}  Ng4 {[%clk 0:00:04]} 30. Bc3 {[%clk 0:00:20]}  Nf2+ {[%clk 0:00:04]} 31. Kg1 {[%clk 0:00:20]}  Ne4 {[%clk 0:00:05]} 32. d5+ {[%clk 0:00:20]}  Rxc3 {[%clk 0:00:05]} 33. bxc3 {[%clk 0:00:19]}  Be3+ {[%clk 0:00:05]} 34. Kh1 {[%clk 0:00:18]}  Nf2+ {[%clk 0:00:06]} 35. Kg1 {[%clk 0:00:19]}  Nh3+ {[%clk 0:00:07]} 36. Kh1 {[%clk 0:00:19]}  Nf2+ {[%clk 0:00:08]} 37. Kg1 {[%clk 0:00:19]}  Ng4+ {[%clk 0:00:08]} 38. Kh1 {[%clk 0:00:19]}  Nf2+ {[%clk 0:00:07]} 1/2-1/2

[Event "January 9 Late 2024"]
[Site "https://www.chess.com"]
[Date "2024.01.09"]
[Round "6"]
[White "Smiech, Sara"]
[Black "Filipovic, Slobodan J"]
[Result "0-1"]
[Board "133"]
[TimeControl "180+1"]
[WhiteFideId "91102863"]
[BlackFideId "939633"]
[WhiteElo "2527"]
[BlackElo "2348"]
[WhiteTeam "POL"]
[BlackTeam "SRB"]
[WhiteClock "0:00:03"]
[BlackClock "0:00:09"]

1. e4 {[%clk 0:02:57]}  c5 {[%clk 0:02:59]} 2. Nf3 {[%clk 0:02:57]}  Nc6 {[%clk 0:02:59]} 3. d4 {[%clk 0:02:57]}  cxd4 {[%clk 0:02:58]} 4. Nxd4 {[%clk 0:02:58]}  e5 {[%clk 0:02:59]} 5. Nb5 {[%clk 0:02:57]}  d6 {[%clk 0:02:59]} 6. N1c3 {[%clk 0:02:56]}  a6 {[%clk 0:02:59]} 7. Na3 {[%clk 0:02:56]}  b5 {[%clk 0:03:00]} 8. Nd5 {[%clk 0:02:56]}  Nge7 {[%clk 0:03:01]} 9. c4 {[%clk 0:02:56]}  Nd4 {[%clk 0:03:00]} 10. Nc2 {[%clk 0:02:54]}  Nxd5 {[%clk 0:03:00]} 11. cxd5 {[%clk 0:02:54]}  Bg4 {[%clk 0:02:58]} 12. Qd3 {[%clk 0:02:42]}  Nxc2+ {[%clk 0:02:53]} 13. Qxc2 {[%clk 0:02:41]}  Rc8 {[%clk 0:02:53]} 14. Qd3 {[%clk 0:02:41]}  Be7 {[%clk 0:02:45]} 15. Be2 {[%clk 0:02:39]}  Bd7 {[%clk 0:02:44]} 16. O-O {[%clk 0:02:39]}  O-O {[%clk 0:02:43]} 17. Bd2 {[%clk 0:02:33]}  f5 {[%clk 0:02:39]} 18. f3 {[%clk 0:02:30]}  Bg5 {[%clk 0:02:27]} 19. Rac1 {[%clk 0:02:28]}  fxe4 {[%clk 0:02:20]} 20. fxe4 {[%clk 0:02:27]}  Rxc1 {[%clk 0:02:11]} 21. Rxc1 {[%clk 0:02:24]}  Qb6+ {[%clk 0:02:06]} 22. Kh1 {[%clk 0:02:24]}  Bxd2 {[%clk 0:02:02]} 23. Qxd2 {[%clk 0:02:24]}  Qf2 {[%clk 0:02:01]} 24. Qd3 {[%clk 0:02:21]}  Qb6 {[%clk 0:01:31]} 25. Rf1 {[%clk 0:02:16]}  Rxf1+ {[%clk 0:01:26]} 26. Bxf1 {[%clk 0:02:17]}  h6 {[%clk 0:01:26]} 27. h3 {[%clk 0:02:16]}  Qf2 {[%clk 0:01:21]} 28. Qe2 {[%clk 0:02:11]}  Qd4 {[%clk 0:01:15]} 29. Qc2 {[%clk 0:02:06]}  Kh7 {[%clk 0:01:10]} 30. Qe2 {[%clk 0:01:44]}  Be8 {[%clk 0:01:06]} 31. Qc2 {[%clk 0:01:36]}  Bg6 {[%clk 0:00:58]} 32. Bd3 {[%clk 0:01:35]}  Qe3 {[%clk 0:00:55]} 33. a3 {[%clk 0:01:32]}  h5 {[%clk 0:00:53]} 34. b4 {[%clk 0:01:30]}  h4 {[%clk 0:00:52]} 35. Qb1 {[%clk 0:01:23]}  Kh6 {[%clk 0:00:51]} 36. Qc2 {[%clk 0:01:22]}  Kg5 {[%clk 0:00:51]} 37. Qd1 {[%clk 0:01:17]}  Bh5 {[%clk 0:00:48]} 38. Qf1 {[%clk 0:01:15]}  Qf4 {[%clk 0:00:42]} 39. Qe1 {[%clk 0:01:14]}  Qg3 {[%clk 0:00:38]} 40. Qd2+ {[%clk 0:01:12]}  Qf4 {[%clk 0:00:33]} 41. Qc2 {[%clk 0:01:12]}  Bg6 {[%clk 0:00:31]} 42. Qe2 {[%clk 0:01:00]}  Qg3 {[%clk 0:00:29]} 43. Qd2+ {[%clk 0:00:58]}  Qf4 {[%clk 0:00:27]} 44. Qc2 {[%clk 0:00:57]}  Qe3 {[%clk 0:00:22]} 45. Qb1 {[%clk 0:00:51]}  Kf4 {[%clk 0:00:10]} 46. Qf1+ {[%clk 0:00:51]}  Kg3 {[%clk 0:00:09]} 47. Be2 {[%clk 0:00:45]}  Qf2 {[%clk 0:00:09]} 48. Qxf2+ {[%clk 0:00:07]}  Kxf2 {[%clk 0:00:09]} 49. Bd3 {[%clk 0:00:07]}  Ke3 {[%clk 0:00:09]} 50. Bf1 {[%clk 0:00:05]}  Bxe4 {[%clk 0:00:08]} 51. a4 {[%clk 0:00:06]}  bxa4 {[%clk 0:00:07]} 52. Bxa6 {[%clk 0:00:06]}  a3 {[%clk 0:00:07]} 53. Bc4 {[%clk 0:00:06]}  Kd4 {[%clk 0:00:07]} 54. Ba2 {[%clk 0:00:05]}  Bxd5 {[%clk 0:00:07]} 55. Bb1 {[%clk 0:00:05]}  a2 {[%clk 0:00:07]} 56. Bxa2 {[%clk 0:00:06]}  Bxa2 {[%clk 0:00:08]} 57. g3 {[%clk 0:00:05]}  Bd5+ {[%clk 0:00:08]} 58. Kg1 {[%clk 0:00:03]}  hxg3 {[%clk 0:00:09]} 0-1

[Event "January 9 Late 2024"]
[Site "https://www.chess.com"]
[Date "2024.01.09"]
[Round "6"]
[White "Korol, Dimitry"]
[Black "Play, Gilles"]
[Result "0-1"]
[Board "136"]
[TimeControl "180+1"]
[WhiteFideId "14108003"]
[BlackFideId "45130892"]
[WhiteElo "2341"]
[BlackElo "2519"]
[WhiteTeam "UKR"]
[BlackTeam "FRA"]
[WhiteClock "0:00:00"]
[BlackClock "0:00:10"]

1. d4 {[%clk 0:03:00]}  Nf6 {[%clk 0:02:58]} 2. c4 {[%clk 0:03:01]}  e5 {[%clk 0:02:58]} 3. dxe5 {[%clk 0:03:00]}  Ng4 {[%clk 0:02:58]} 4. Bf4 {[%clk 0:03:01]}  Nc6 {[%clk 0:02:58]} 5. Nf3 {[%clk 0:03:01]}  Bb4+ {[%clk 0:02:58]} 6. Nbd2 {[%clk 0:03:01]}  Qe7 {[%clk 0:02:58]} 7. e3 {[%clk 0:03:01]}  Ngxe5 {[%clk 0:02:56]} 8. Nxe5 {[%clk 0:03:02]}  Nxe5 {[%clk 0:02:56]} 9. Be2 {[%clk 0:03:02]}  O-O {[%clk 0:02:56]} 10. O-O {[%clk 0:03:02]}  a5 {[%clk 0:02:56]} 11. Nb3 {[%clk 0:02:46]}  a4 {[%clk 0:02:43]} 12. a3 {[%clk 0:02:42]}  Ba5 {[%clk 0:02:18]} 13. Nxa5 {[%clk 0:01:12]}  Rxa5 {[%clk 0:02:19]} 14. Qd2 {[%clk 0:01:11]}  b6 {[%clk 0:02:18]} 15. Rac1 {[%clk 0:01:03]}  d6 {[%clk 0:02:15]} 16. Rfd1 {[%clk 0:01:02]}  Ng6 {[%clk 0:02:10]} 17. Bg3 {[%clk 0:01:02]}  h5 {[%clk 0:02:09]} 18. h3 {[%clk 0:01:01]}  h4 {[%clk 0:02:06]} 19. Bh2 {[%clk 0:00:59]}  Rg5 {[%clk 0:01:53]} 20. Kh1 {[%clk 0:00:58]}  Bb7 {[%clk 0:01:39]} 21. f3 {[%clk 0:00:57]}  f5 {[%clk 0:01:32]} 22. Re1 {[%clk 0:00:47]}  Re8 {[%clk 0:01:30]} 23. Bd3 {[%clk 0:00:41]}  Ne5 {[%clk 0:01:24]} 24. Bf1 {[%clk 0:00:31]}  Nxf3 {[%clk 0:01:22]} 25. Qc2 {[%clk 0:00:18]}  Be4 {[%clk 0:01:03]} 26. Qxa4 {[%clk 0:00:16]}  Nxe1 {[%clk 0:00:59]} 27. Rxe1 {[%clk 0:00:17]}  c6 {[%clk 0:00:57]} 28. Bf4 {[%clk 0:00:16]}  Rg6 {[%clk 0:00:56]} 29. Qb4 {[%clk 0:00:16]}  Qc7 {[%clk 0:00:34]} 30. Qb3 {[%clk 0:00:13]}  c5 {[%clk 0:00:28]} 31. Qc3 {[%clk 0:00:11]}  Qc6 {[%clk 0:00:28]} 32. Qd2 {[%clk 0:00:12]}  Rd8 {[%clk 0:00:26]} 33. Kh2 {[%clk 0:00:09]}  Kh8 {[%clk 0:00:24]} 34. Rd1 {[%clk 0:00:08]}  d5 {[%clk 0:00:24]} 35. Qf2 {[%clk 0:00:07]}  Kg8 {[%clk 0:00:20]} 36. Qxh4 {[%clk 0:00:07]}  d4 {[%clk 0:00:20]} 37. Qxd8+ {[%clk 0:00:07]}  Kh7 {[%clk 0:00:20]} 38. Qh4+ {[%clk 0:00:05]}  Kg8 {[%clk 0:00:20]} 39. Qd8+ {[%clk 0:00:04]}  Kh7 {[%clk 0:00:20]} 40. Qh4+ {[%clk 0:00:04]}  Kg8 {[%clk 0:00:20]} 41. Rd2 {[%clk 0:00:04]}  Qe8 {[%clk 0:00:15]} 42. Qf2 {[%clk 0:00:03]}  Re6 {[%clk 0:00:11]} 43. exd4 {[%clk 0:00:03]}  cxd4 {[%clk 0:00:12]} 44. Qxd4 {[%clk 0:00:03]}  Qg6 {[%clk 0:00:11]} 45. c5 {[%clk 0:00:02]}  Re8 {[%clk 0:00:11]} 46. cxb6 {[%clk 0:00:02]}  Qc6 {[%clk 0:00:10]} 47. Qc4+ {[%clk 0:00:00]}  Kh7 {[%clk 0:00:10]} 0-1